[Event "Titled Tuesday Blitz April 11 Early 2023"]
[White "Kopczynski, Michal"]
[Black "Manukyan, Sargis A."]
[WhiteFideId "1124200"]
[BlackFideId "13303970"]
[WhiteElo "2212"]
[BlackElo "2187"]
[Result "1-0"]
[Round "05"]
[TimeControl "180+2"]
[Date "2023.04.11"]
[WhiteClock "0:00:30"]
[BlackClock "0:00:14"]

1. e4 {[%clk 0:03:00]}  c5 {[%clk 0:02:56]} 2. d4 {[%clk 0:03:00]}  cxd4 {[%clk 0:02:57]} 3. c3 {[%clk 0:03:01]}  dxc3 {[%clk 0:02:58]} 4. Nxc3 {[%clk 0:03:02]}  Nc6 {[%clk 0:02:58]} 5. f4 {[%clk 0:03:02]}  d6 {[%clk 0:02:58]} 6. Nf3 {[%clk 0:03:03]}  Nf6 {[%clk 0:02:58]} 7. Bd3 {[%clk 0:03:03]}  g6 {[%clk 0:02:58]} 8. O-O {[%clk 0:03:03]}  Bg7 {[%clk 0:02:59]} 9. Kh1 {[%clk 0:03:04]}  O-O {[%clk 0:02:59]} 10. Qe1 {[%clk 0:03:04]}  e5 {[%clk 0:02:50]} 11. f5 {[%clk 0:03:01]}  h6 {[%clk 0:02:47]} 12. fxg6 {[%clk 0:02:53]}  fxg6 {[%clk 0:02:47]} 13. Qh4 {[%clk 0:02:51]}  g5 {[%clk 0:02:43]} 14. Bxg5 {[%clk 0:02:46]}  hxg5 {[%clk 0:02:38]} 15. Nxg5 {[%clk 0:02:47]}  Nb4 {[%clk 0:01:59]} 16. Bc4+ {[%clk 0:02:43]}  d5 {[%clk 0:01:59]} 17. Nxd5 {[%clk 0:02:41]}  Nbxd5 {[%clk 0:01:18]} 18. Bxd5+ {[%clk 0:02:40]}  Qxd5 {[%clk 0:01:18]} 19. exd5 {[%clk 0:02:38]}  Bd7 {[%clk 0:01:19]} 20. Rac1 {[%clk 0:02:05]}  Rac8 {[%clk 0:01:09]} 21. Rxc8 {[%clk 0:01:59]}  Bxc8 {[%clk 0:01:10]} 22. d6 {[%clk 0:01:45]}  b5 {[%clk 0:01:05]} 23. h3 {[%clk 0:01:41]}  Bd7 {[%clk 0:00:59]} 24. Rc1 {[%clk 0:01:08]}  Rd8 {[%clk 0:00:47]} 25. Ne4 {[%clk 0:01:04]}  Rf8 {[%clk 0:00:40]} 26. Rc7 {[%clk 0:00:52]}  Nxe4 {[%clk 0:00:26]} 27. Rxd7 {[%clk 0:00:49]}  Nf6 {[%clk 0:00:17]} 28. Rxa7 {[%clk 0:00:45]}  e4 {[%clk 0:00:10]} 29. Qg5 {[%clk 0:00:42]}  Ne8 {[%clk 0:00:09]} 30. Rxg7+ {[%clk 0:00:33]}  Nxg7 {[%clk 0:00:09]} 31. d7 {[%clk 0:00:34]}  e3 {[%clk 0:00:08]} 32. d8=Q {[%clk 0:00:33]}  Rxd8 {[%clk 0:00:08]} 33. Qxd8+ {[%clk 0:00:32]}  Kf7 {[%clk 0:00:09]} 34. Qd5+ {[%clk 0:00:30]}  Ne6 {[%clk 0:00:10]} 35. Qf3+ {[%clk 0:00:30]}  Ke7 {[%clk 0:00:09]} 36. Qxe3 {[%clk 0:00:31]}  b4 {[%clk 0:00:10]} 37. h4 {[%clk 0:00:31]}  b3 {[%clk 0:00:11]} 38. axb3 {[%clk 0:00:30]}  Kd6 {[%clk 0:00:12]} 39. h5 {[%clk 0:00:30]}  Nc5 {[%clk 0:00:11]} 40. h6 {[%clk 0:00:30]}  Kc6 {[%clk 0:00:12]} 41. h7 {[%clk 0:00:31]}  Kb5 {[%clk 0:00:13]} 42. h8=Q {[%clk 0:00:30]}  Kb4 {[%clk 0:00:14]} 43. Qhc3+ {[%clk 0:00:30]}  Kb5 {[%clk 0:00:14]} 44. Qe2+ {[%clk 0:00:30]} 1-0


[Site "https://www.chess.com"]

[Event "Titled Tuesday Blitz April 11 Early 2023"]
[White "Shukhman, Anna"]
[Black "Lehtosaari, Mauri"]
[WhiteFideId "54180058"]
[BlackFideId "501999"]
[WhiteElo "2125"]
[BlackElo "2524"]
[Result "1/2-1/2"]
[Round "05"]
[TimeControl "180+2"]
[Date "2023.04.11"]
[WhiteClock "0:00:16"]
[BlackClock "0:00:29"]

1. e4 {[%clk 0:03:00]}  d5 {[%clk 0:02:57]} 2. exd5 {[%clk 0:03:00]}  Qxd5 {[%clk 0:02:52]} 3. Nc3 {[%clk 0:03:00]}  Qd8 {[%clk 0:02:52]} 4. d4 {[%clk 0:03:00]}  Nf6 {[%clk 0:02:51]} 5. Nf3 {[%clk 0:03:00]}  Bg4 {[%clk 0:02:49]} 6. h3 {[%clk 0:02:58]}  Bxf3 {[%clk 0:02:48]} 7. Qxf3 {[%clk 0:02:57]}  c6 {[%clk 0:02:48]} 8. Be3 {[%clk 0:02:56]}  e6 {[%clk 0:02:47]} 9. Be2 {[%clk 0:02:40]}  Nbd7 {[%clk 0:02:44]} 10. O-O {[%clk 0:02:38]}  Bd6 {[%clk 0:02:40]} 11. Rad1 {[%clk 0:02:37]}  Qa5 {[%clk 0:02:28]} 12. a3 {[%clk 0:02:30]}  O-O {[%clk 0:02:19]} 13. Ne4 {[%clk 0:02:23]}  Nxe4 {[%clk 0:02:10]} 14. Qxe4 {[%clk 0:02:24]}  Rfe8 {[%clk 0:01:49]} 15. c4 {[%clk 0:02:18]}  Rad8 {[%clk 0:01:40]} 16. Bd3 {[%clk 0:02:14]}  Nf6 {[%clk 0:01:34]} 17. Qh4 {[%clk 0:02:13]}  Qh5 {[%clk 0:01:28]} 18. Qxh5 {[%clk 0:02:04]}  Nxh5 {[%clk 0:01:28]} 19. g3 {[%clk 0:02:01]}  a6 {[%clk 0:01:23]} 20. Rfe1 {[%clk 0:01:58]}  Nf6 {[%clk 0:01:16]} 21. f4 {[%clk 0:01:48]}  h6 {[%clk 0:01:14]} 22. Kf2 {[%clk 0:01:47]}  Bc7 {[%clk 0:01:13]} 23. Kf3 {[%clk 0:01:48]}  Rd7 {[%clk 0:01:13]} 24. Bc2 {[%clk 0:01:46]}  Red8 {[%clk 0:01:13]} 25. Rd2 {[%clk 0:01:46]}  Ba5 {[%clk 0:01:12]} 26. b4 {[%clk 0:01:45]}  Bb6 {[%clk 0:01:12]} 27. Red1 {[%clk 0:01:39]}  Ne8 {[%clk 0:01:11]} 28. a4 {[%clk 0:01:34]}  Ba7 {[%clk 0:01:07]} 29. a5 {[%clk 0:01:33]}  Nd6 {[%clk 0:01:07]} 30. Bb3 {[%clk 0:01:33]}  Nf5 {[%clk 0:01:07]} 31. c5 {[%clk 0:01:32]}  Nxe3 {[%clk 0:00:56]} 32. Kxe3 {[%clk 0:01:31]}  Bb8 {[%clk 0:00:57]} 33. Kf3 {[%clk 0:01:25]}  Kf8 {[%clk 0:00:57]} 34. g4 {[%clk 0:01:25]}  g6 {[%clk 0:00:56]} 35. h4 {[%clk 0:01:24]}  Kg7 {[%clk 0:00:56]} 36. g5 {[%clk 0:01:10]}  Rh8 {[%clk 0:00:52]} 37. Kg4 {[%clk 0:01:05]}  Bc7 {[%clk 0:00:48]} 38. Re2 {[%clk 0:00:33]}  Bd8 {[%clk 0:00:46]} 39. Re4 {[%clk 0:00:26]}  Be7 {[%clk 0:00:45]} 40. Re2 {[%clk 0:00:25]}  Bf8 {[%clk 0:00:44]} 41. Re4 {[%clk 0:00:25]}  Kg8 {[%clk 0:00:43]} 42. Rde1 {[%clk 0:00:21]}  Kg7 {[%clk 0:00:35]} 43. Rd1 {[%clk 0:00:20]}  Be7 {[%clk 0:00:34]} 44. Re2 {[%clk 0:00:19]}  Rhd8 {[%clk 0:00:35]} 45. Re4 {[%clk 0:00:19]}  Kh7 {[%clk 0:00:32]} 46. Rd3 {[%clk 0:00:19]}  Bf8 {[%clk 0:00:33]} 47. h5 {[%clk 0:00:13]}  gxh5+ {[%clk 0:00:31]} 48. Kxh5 {[%clk 0:00:14]}  Bg7 {[%clk 0:00:31]} 49. gxh6 {[%clk 0:00:14]}  Bf6 {[%clk 0:00:31]} 50. Rd1 {[%clk 0:00:13]}  Rxd4 {[%clk 0:00:30]} 51. Rdxd4 {[%clk 0:00:13]}  Rxd4 {[%clk 0:00:31]} 52. Rxd4 {[%clk 0:00:13]}  Bxd4 {[%clk 0:00:32]} 53. Bc2+ {[%clk 0:00:13]}  Kh8 {[%clk 0:00:31]} 54. Kg5 {[%clk 0:00:14]}  Bc3 {[%clk 0:00:31]} 55. f5 {[%clk 0:00:14]}  Bxb4 {[%clk 0:00:29]} 56. fxe6 {[%clk 0:00:14]}  fxe6 {[%clk 0:00:30]} 57. Kf6 {[%clk 0:00:14]}  Bxc5 {[%clk 0:00:30]} 58. Kxe6 {[%clk 0:00:15]}  Bb4 {[%clk 0:00:30]} 59. Kd7 {[%clk 0:00:15]}  Bxa5 {[%clk 0:00:30]} 60. Kc8 {[%clk 0:00:15]}  b5 {[%clk 0:00:29]} 61. Kb7 {[%clk 0:00:15]}  c5 {[%clk 0:00:29]} 62. Kxa6 {[%clk 0:00:15]}  Bd2 {[%clk 0:00:28]} 63. Kxb5 {[%clk 0:00:15]}  Bxh6 {[%clk 0:00:29]} 64. Kxc5 {[%clk 0:00:16]} 1/2-1/2


[Site "https://www.chess.com"]

[Event "Titled Tuesday Blitz April 11 Early 2023"]
[White "Nurgaliyeva, Zarina"]
[Black "Namitbir Singh Walia"]
[WhiteFideId "13730096"]
[BlackFideId "35071068"]
[WhiteElo "2134"]
[BlackElo "2239"]
[Result "1-0"]
[Round "05"]
[TimeControl "180+2"]
[Date "2023.04.11"]
[WhiteClock "0:00:34"]
[BlackClock "0:00:04"]

1. e4 {[%clk 0:03:00]}  c5 {[%clk 0:03:00]} 2. Nf3 {[%clk 0:02:58]}  Nc6 {[%clk 0:03:00]} 3. Bb5 {[%clk 0:02:50]}  e5 {[%clk 0:02:53]} 4. O-O {[%clk 0:02:42]}  Bd6 {[%clk 0:02:52]} 5. c3 {[%clk 0:02:39]}  Bc7 {[%clk 0:02:53]} 6. d4 {[%clk 0:02:38]}  exd4 {[%clk 0:02:52]} 7. cxd4 {[%clk 0:02:39]}  cxd4 {[%clk 0:02:51]} 8. Nxd4 {[%clk 0:02:38]}  Nge7 {[%clk 0:02:43]} 9. Nc3 {[%clk 0:02:28]}  O-O {[%clk 0:02:41]} 10. Bg5 {[%clk 0:02:27]}  Qe8 {[%clk 0:02:35]} 11. Re1 {[%clk 0:02:22]}  Ng6 {[%clk 0:02:35]} 12. Nd5 {[%clk 0:02:15]}  Bb8 {[%clk 0:02:19]} 13. h4 {[%clk 0:02:05]}  Qe5 {[%clk 0:02:12]} 14. Nf5 {[%clk 0:02:00]}  Qh2+ {[%clk 0:01:48]} 15. Kf1 {[%clk 0:01:53]}  Qh1+ {[%clk 0:01:29]} 16. Ke2 {[%clk 0:01:52]}  Qxg2 {[%clk 0:01:30]} 17. Qd3 {[%clk 0:01:33]}  Nce5 {[%clk 0:01:25]} 18. Qe3 {[%clk 0:01:27]}  Qg4+ {[%clk 0:00:31]} 19. f3 {[%clk 0:01:13]}  Qg2+ {[%clk 0:00:30]} 20. Qf2 {[%clk 0:01:12]}  Qxf2+ {[%clk 0:00:30]} 21. Kxf2 {[%clk 0:01:13]}  h6 {[%clk 0:00:20]} 22. Be3 {[%clk 0:01:10]}  a6 {[%clk 0:00:15]} 23. Be2 {[%clk 0:01:06]}  Ba7 {[%clk 0:00:11]} 24. h5 {[%clk 0:01:02]}  Nh8 {[%clk 0:00:10]} 25. Nfe7+ {[%clk 0:00:53]}  Kh7 {[%clk 0:00:09]} 26. Rac1 {[%clk 0:00:41]}  Nc6 {[%clk 0:00:08]} 27. Nf5 {[%clk 0:00:36]}  Bxe3+ {[%clk 0:00:06]} 28. Kxe3 {[%clk 0:00:37]}  b5 {[%clk 0:00:05]} 29. Rg1 {[%clk 0:00:35]}  g6 {[%clk 0:00:04]} 30. Nf6# {[%clk 0:00:34]} 1-0


[Site "https://www.chess.com"]

[Event "Titled Tuesday Blitz April 11 Early 2023"]
[White "Melikhov, Evgeny V."]
[Black "Aung Thant Zin"]
[WhiteFideId "4122046"]
[BlackFideId "13000063"]
[WhiteElo "2158"]
[BlackElo "2278"]
[Result "1/2-1/2"]
[Round "05"]
[TimeControl "180+2"]
[Date "2023.04.11"]
[WhiteClock "0:00:06"]
[BlackClock "0:00:14"]

1. d4 {[%clk 0:03:00]}  Nf6 {[%clk 0:02:55]} 2. c4 {[%clk 0:03:00]}  e6 {[%clk 0:02:54]} 3. Nc3 {[%clk 0:03:01]}  Bb4 {[%clk 0:02:53]} 4. Qc2 {[%clk 0:03:01]}  c5 {[%clk 0:02:53]} 5. dxc5 {[%clk 0:03:01]}  Na6 {[%clk 0:02:52]} 6. a3 {[%clk 0:03:01]}  Bxc3+ {[%clk 0:02:52]} 7. Qxc3 {[%clk 0:03:01]}  Nxc5 {[%clk 0:02:52]} 8. f3 {[%clk 0:03:01]}  d6 {[%clk 0:02:22]} 9. e4 {[%clk 0:02:51]}  O-O {[%clk 0:02:20]} 10. b4 {[%clk 0:02:48]}  Ncd7 {[%clk 0:02:20]} 11. Be3 {[%clk 0:02:42]}  Qc7 {[%clk 0:02:19]} 12. Ne2 {[%clk 0:02:39]}  b6 {[%clk 0:02:17]} 13. Rd1 {[%clk 0:02:32]}  Rd8 {[%clk 0:02:16]} 14. Nd4 {[%clk 0:02:27]}  a6 {[%clk 0:02:12]} 15. Be2 {[%clk 0:02:19]}  Bb7 {[%clk 0:02:12]} 16. O-O {[%clk 0:02:18]}  Rac8 {[%clk 0:02:11]} 17. Qb2 {[%clk 0:02:15]}  h6 {[%clk 0:02:08]} 18. Rd2 {[%clk 0:02:14]}  Ne5 {[%clk 0:02:04]} 19. Rc2 {[%clk 0:01:51]}  Qb8 {[%clk 0:01:49]} 20. Rfc1 {[%clk 0:01:44]}  Qa8 {[%clk 0:01:29]} 21. Bf1 {[%clk 0:01:32]}  Rc7 {[%clk 0:01:12]} 22. Rc3 {[%clk 0:01:30]}  Rdc8 {[%clk 0:01:12]} 23. Qf2 {[%clk 0:01:29]}  b5 {[%clk 0:01:08]} 24. c5 {[%clk 0:01:28]}  dxc5 {[%clk 0:01:08]} 25. bxc5 {[%clk 0:01:27]}  Nc4 {[%clk 0:00:54]} 26. c6 {[%clk 0:00:59]}  Bxc6 {[%clk 0:00:50]} 27. Nxc6 {[%clk 0:00:44]}  Rxc6 {[%clk 0:00:49]} 28. Bf4 {[%clk 0:00:40]}  Nxa3 {[%clk 0:00:37]} 29. Rxa3 {[%clk 0:00:17]}  Rxc1 {[%clk 0:00:35]} 30. Bxc1 {[%clk 0:00:17]}  Rxc1 {[%clk 0:00:34]} 31. Qb6 {[%clk 0:00:17]}  Qc8 {[%clk 0:00:24]} 32. Rxa6 {[%clk 0:00:14]}  Qc4 {[%clk 0:00:23]} 33. Qf2 {[%clk 0:00:12]}  Nh5 {[%clk 0:00:19]} 34. h4 {[%clk 0:00:11]}  Nf4 {[%clk 0:00:19]} 35. Rb6 {[%clk 0:00:07]}  Ne2+ {[%clk 0:00:16]} 36. Kh2 {[%clk 0:00:07]}  Qc7+ {[%clk 0:00:16]} 37. g3 {[%clk 0:00:07]}  Nxg3 {[%clk 0:00:16]} 38. Qxg3 {[%clk 0:00:07]}  Qxg3+ {[%clk 0:00:14]} 39. Kxg3 {[%clk 0:00:07]}  Rxf1 {[%clk 0:00:15]} 40. Rxb5 {[%clk 0:00:07]}  Rc1 {[%clk 0:00:15]} 41. e5 {[%clk 0:00:07]}  Re1 {[%clk 0:00:13]} 42. f4 {[%clk 0:00:07]}  Re3+ {[%clk 0:00:14]} 43. Kg2 {[%clk 0:00:05]}  Re4 {[%clk 0:00:13]} 44. Kf3 {[%clk 0:00:05]}  Rc4 {[%clk 0:00:14]} 45. h5 {[%clk 0:00:05]}  Kh7 {[%clk 0:00:13]} 46. Rb7 {[%clk 0:00:05]}  Kg8 {[%clk 0:00:13]} 47. Rb8+ {[%clk 0:00:05]}  Kh7 {[%clk 0:00:13]} 48. Rb7 {[%clk 0:00:05]}  Kg8 {[%clk 0:00:14]} 49. Rb8+ {[%clk 0:00:06]}  Kh7 {[%clk 0:00:14]} 50. Rb7 {[%clk 0:00:06]} 1/2-1/2


[Site "https://www.chess.com"]

[Event "Titled Tuesday Blitz April 11 Early 2023"]
[White "Balint, Vilmos"]
[Black "Karttunen, Mika"]
[WhiteFideId "718050"]
[BlackFideId "502081"]
[WhiteElo "2034"]
[BlackElo "2396"]
[Result "0-1"]
[Round "05"]
[TimeControl "180+2"]
[Date "2023.04.11"]
[WhiteClock "0:01:39"]
[BlackClock "0:01:20"]

1. e4 {[%clk 0:02:15]}  c5 {[%clk 0:02:59]} 2. Nf3 {[%clk 0:02:15]}  d6 {[%clk 0:02:59]} 3. d4 {[%clk 0:02:15]}  cxd4 {[%clk 0:03:00]} 4. Bb5+ {[%clk 0:02:15]}  Bd7 {[%clk 0:02:59]} 5. Bxd7+ {[%clk 0:02:16]}  Qxd7 {[%clk 0:02:59]} 6. Nxd4 {[%clk 0:02:17]}  Nc6 {[%clk 0:02:59]} 7. f3 {[%clk 0:02:17]}  g6 {[%clk 0:02:50]} 8. Nxc6 {[%clk 0:02:17]}  Qxc6 {[%clk 0:02:50]} 9. O-O {[%clk 0:02:18]}  Bg7 {[%clk 0:02:49]} 10. c3 {[%clk 0:02:18]}  Nf6 {[%clk 0:02:45]} 11. Be3 {[%clk 0:02:17]}  O-O {[%clk 0:02:45]} 12. Nd2 {[%clk 0:02:17]}  e5 {[%clk 0:02:38]} 13. Qb3 {[%clk 0:02:15]}  d5 {[%clk 0:02:38]} 14. exd5 {[%clk 0:02:15]}  Nxd5 {[%clk 0:02:38]} 15. Bf2 {[%clk 0:02:15]}  Nf4 {[%clk 0:02:29]} 16. Rad1 {[%clk 0:02:13]}  Rfd8 {[%clk 0:02:07]} 17. Ne4 {[%clk 0:02:13]}  b6 {[%clk 0:01:56]} 18. Rxd8+ {[%clk 0:02:11]}  Rxd8 {[%clk 0:01:55]} 19. Rd1 {[%clk 0:02:12]}  Rxd1+ {[%clk 0:01:47]} 20. Qxd1 {[%clk 0:02:13]}  Nd5 {[%clk 0:01:46]} 21. Qd3 {[%clk 0:02:01]}  h6 {[%clk 0:01:32]} 22. Qa6 {[%clk 0:01:56]}  Qd7 {[%clk 0:01:28]} 23. Qd3 {[%clk 0:01:52]}  Qe6 {[%clk 0:01:25]} 24. c4 {[%clk 0:01:51]}  Nf4 {[%clk 0:01:24]} 25. Qd8+ {[%clk 0:01:52]}  Kh7 {[%clk 0:01:24]} 26. b3 {[%clk 0:01:52]}  f5 {[%clk 0:01:22]} 27. Qd6 {[%clk 0:01:39]}  fxe4 {[%clk 0:01:20]} 0-1


[Site "https://www.chess.com"]

[Event "Titled Tuesday Blitz April 11 Early 2023"]
[White "Mogirzan, Matei-Valeriu"]
[Black "Perez Gormaz, Matias"]
[WhiteFideId "1257455"]
[BlackFideId "3406342"]
[WhiteElo "1733"]
[BlackElo "2362"]
[Result "1-0"]
[Round "05"]
[TimeControl "180+2"]
[Date "2023.04.11"]
[WhiteClock "0:00:06"]
[BlackClock "0:00:02"]

1. e4 {[%clk 0:02:59]}  c5 {[%clk 0:03:00]} 2. Nf3 {[%clk 0:02:59]}  e6 {[%clk 0:03:00]} 3. d4 {[%clk 0:02:57]}  cxd4 {[%clk 0:03:01]} 4. Nxd4 {[%clk 0:02:58]}  a6 {[%clk 0:03:01]} 5. Nc3 {[%clk 0:02:59]}  Qc7 {[%clk 0:03:01]} 6. a3 {[%clk 0:02:59]}  Nf6 {[%clk 0:02:59]} 7. f4 {[%clk 0:02:57]}  d6 {[%clk 0:02:55]} 8. Be3 {[%clk 0:02:55]}  Be7 {[%clk 0:02:51]} 9. Qf3 {[%clk 0:02:49]}  b5 {[%clk 0:02:49]} 10. g4 {[%clk 0:02:47]}  Bb7 {[%clk 0:02:47]} 11. g5 {[%clk 0:02:44]}  Nfd7 {[%clk 0:02:47]} 12. Qh3 {[%clk 0:02:24]}  g6 {[%clk 0:02:24]} 13. Bxb5 {[%clk 0:01:45]}  axb5 {[%clk 0:02:22]} 14. Ncxb5 {[%clk 0:01:46]}  Qd8 {[%clk 0:01:57]} 15. Nxe6 {[%clk 0:01:33]}  fxe6 {[%clk 0:01:57]} 16. Qxe6 {[%clk 0:01:33]}  Nf8 {[%clk 0:01:54]} 17. Qb3 {[%clk 0:01:17]}  Bxe4 {[%clk 0:01:36]} 18. O-O-O {[%clk 0:00:57]}  Bxh1 {[%clk 0:01:22]} 19. Rxh1 {[%clk 0:00:35]}  Qd7 {[%clk 0:01:03]} 20. Bd4 {[%clk 0:00:20]}  Ra5 {[%clk 0:00:33]} 21. a4 {[%clk 0:00:13]}  Qc6 {[%clk 0:00:23]} 22. Re1 {[%clk 0:00:10]}  Nbd7 {[%clk 0:00:07]} 23. Bxh8 {[%clk 0:00:08]}  Kd8 {[%clk 0:00:08]} 24. Bc3 {[%clk 0:00:08]}  Ra8 {[%clk 0:00:07]} 25. Nd4 {[%clk 0:00:08]}  Qxa4 {[%clk 0:00:05]} 26. Qf7 {[%clk 0:00:07]}  Kc7 {[%clk 0:00:01]} 27. Qxe7 {[%clk 0:00:06]}  Rd8 {[%clk 0:00:01]} 28. Ne6+ {[%clk 0:00:04]}  Nxe6 {[%clk 0:00:01]} 29. Qxe6 {[%clk 0:00:05]}  Qa1+ {[%clk 0:00:02]} 30. Kd2 {[%clk 0:00:05]}  Qa6 {[%clk 0:00:02]} 31. Qe4 {[%clk 0:00:05]}  Qc6 {[%clk 0:00:03]} 32. Qxc6+ {[%clk 0:00:05]}  Kxc6 {[%clk 0:00:04]} 33. Re7 {[%clk 0:00:06]}  Nc5 {[%clk 0:00:04]} 34. Rxh7 {[%clk 0:00:06]}  Ne4+ {[%clk 0:00:05]} 35. Kd3 {[%clk 0:00:06]}  Nf2+ {[%clk 0:00:05]} 36. Ke3 {[%clk 0:00:06]}  Nd1+ {[%clk 0:00:05]} 37. Kd2 {[%clk 0:00:06]}  Nf2 {[%clk 0:00:05]} 38. Bd4 {[%clk 0:00:07]}  Ne4+ {[%clk 0:00:05]} 39. Kd3 {[%clk 0:00:06]}  Nc5+ {[%clk 0:00:06]} 40. Bxc5 {[%clk 0:00:06]}  dxc5+ {[%clk 0:00:07]} 41. Ke3 {[%clk 0:00:07]}  Rd4 {[%clk 0:00:08]} 42. Rg7 {[%clk 0:00:06]}  Rc4 {[%clk 0:00:05]} 43. Rxg6+ {[%clk 0:00:06]}  Kd5 {[%clk 0:00:06]} 44. c3 {[%clk 0:00:07]}  Re4+ {[%clk 0:00:06]} 45. Kf3 {[%clk 0:00:07]}  Re1 {[%clk 0:00:07]} 46. Kg4 {[%clk 0:00:07]}  Rg1+ {[%clk 0:00:08]} 47. Kh4 {[%clk 0:00:07]}  Ke4 {[%clk 0:00:07]} 48. Rf6 {[%clk 0:00:07]}  Rg2 {[%clk 0:00:07]} 49. h3 {[%clk 0:00:07]}  Rxb2 {[%clk 0:00:08]} 50. g6 {[%clk 0:00:07]}  Rg2 {[%clk 0:00:08]} 51. Kh5 {[%clk 0:00:06]}  c4 {[%clk 0:00:08]} 52. h4 {[%clk 0:00:06]}  Kd3 {[%clk 0:00:08]} 53. Kh6 {[%clk 0:00:05]}  Kxc3 {[%clk 0:00:09]} 54. g7 {[%clk 0:00:05]}  Kd3 {[%clk 0:00:06]} 55. Rc6 {[%clk 0:00:04]}  c3 {[%clk 0:00:05]} 56. Kh7 {[%clk 0:00:05]}  c2 {[%clk 0:00:05]} 57. g8=Q {[%clk 0:00:05]}  Rxg8 {[%clk 0:00:02]} 58. Kxg8 {[%clk 0:00:06]} 1-0


[Site "https://www.chess.com"]

[Event "Titled Tuesday Blitz April 11 Early 2023"]
[White "Safin, Robert"]
[Black "Mrudul Dehankar"]
[WhiteFideId "34189120"]
[BlackFideId "25096990"]
[WhiteElo "2245"]
[BlackElo "2139"]
[Result "1-0"]
[Round "05"]
[TimeControl "180+2"]
[Date "2023.04.11"]
[WhiteClock "0:00:05"]
[BlackClock "0:00:11"]

1. e4 {[%clk 0:03:00]}  c6 {[%clk 0:02:55]} 2. d4 {[%clk 0:02:59]}  d5 {[%clk 0:02:55]} 3. exd5 {[%clk 0:02:59]}  cxd5 {[%clk 0:02:56]} 4. Bd3 {[%clk 0:02:59]}  Nf6 {[%clk 0:02:54]} 5. h3 {[%clk 0:02:55]}  Nc6 {[%clk 0:02:52]} 6. c3 {[%clk 0:02:54]}  g6 {[%clk 0:02:50]} 7. Nf3 {[%clk 0:02:54]}  Qc7 {[%clk 0:02:49]} 8. O-O {[%clk 0:02:45]}  Bg7 {[%clk 0:02:49]} 9. Re1 {[%clk 0:02:22]}  O-O {[%clk 0:02:31]} 10. Be3 {[%clk 0:02:14]}  Bf5 {[%clk 0:02:18]} 11. Bf1 {[%clk 0:02:11]}  Rfe8 {[%clk 0:02:12]} 12. Nbd2 {[%clk 0:02:10]}  Nd7 {[%clk 0:02:10]} 13. Qb3 {[%clk 0:01:40]}  Nb6 {[%clk 0:02:01]} 14. a4 {[%clk 0:01:38]}  Rad8 {[%clk 0:00:58]} 15. a5 {[%clk 0:01:31]}  Nc8 {[%clk 0:00:56]} 16. a6 {[%clk 0:01:29]}  b6 {[%clk 0:00:52]} 17. Bg5 {[%clk 0:01:19]}  Na5 {[%clk 0:00:49]} 18. Qa2 {[%clk 0:01:16]}  Kh8 {[%clk 0:00:45]} 19. Ne5 {[%clk 0:01:05]}  Be6 {[%clk 0:00:40]} 20. Bb5 {[%clk 0:00:52]}  Rf8 {[%clk 0:00:33]} 21. Bf4 {[%clk 0:00:43]}  Nd6 {[%clk 0:00:32]} 22. Ba4 {[%clk 0:00:35]}  Qc8 {[%clk 0:00:26]} 23. b4 {[%clk 0:00:29]}  Nac4 {[%clk 0:00:26]} 24. Ndxc4 {[%clk 0:00:19]}  dxc4 {[%clk 0:00:17]} 25. Nc6 {[%clk 0:00:19]}  Rd7 {[%clk 0:00:17]} 26. Nxe7 {[%clk 0:00:19]}  Qc7 {[%clk 0:00:11]} 27. Bxd7 {[%clk 0:00:08]}  Qxd7 {[%clk 0:00:11]} 28. d5 {[%clk 0:00:08]}  Qxe7 {[%clk 0:00:10]} 29. dxe6 {[%clk 0:00:07]}  fxe6 {[%clk 0:00:10]} 30. Bxd6 {[%clk 0:00:06]}  Qxd6 {[%clk 0:00:11]} 31. Qxc4 {[%clk 0:00:06]}  e5 {[%clk 0:00:11]} 32. Rad1 {[%clk 0:00:04]}  Qf6 {[%clk 0:00:11]} 33. Re2 {[%clk 0:00:04]}  Qf5 {[%clk 0:00:10]} 34. Qe4 {[%clk 0:00:04]}  Qc8 {[%clk 0:00:09]} 35. Qe3 {[%clk 0:00:03]}  Qxa6 {[%clk 0:00:08]} 36. Qd3 {[%clk 0:00:02]}  Qc8 {[%clk 0:00:08]} 37. b5 {[%clk 0:00:02]}  Bf6 {[%clk 0:00:09]} 38. Re4 {[%clk 0:00:02]}  Rd8 {[%clk 0:00:09]} 39. Qe2 {[%clk 0:00:02]}  Rxd1+ {[%clk 0:00:09]} 40. Qxd1 {[%clk 0:00:02]}  Qxc3 {[%clk 0:00:10]} 41. Qf3 {[%clk 0:00:02]}  Kg7 {[%clk 0:00:10]} 42. Qxc3 {[%clk 0:00:01]}  Kf7 {[%clk 0:00:10]} 43. Qd3 {[%clk 0:00:02]}  Kg7 {[%clk 0:00:10]} 44. g3 {[%clk 0:00:03]}  Kf7 {[%clk 0:00:10]} 45. Kg2 {[%clk 0:00:04]}  Ke6 {[%clk 0:00:11]} 46. Rc4 {[%clk 0:00:05]} 1-0


[Site "https://www.chess.com"]